[Event "*** Titled Tuesday Blitz"]
[Site "Chess.com"]
[Date "2021.02.02"]
[Round "7"]
[White "louis198"]
[Black "Taktikmonster"]
[Result "1-0"]
[WhiteElo "2571"]
[BlackElo "2289"]
[TimeControl "180+1"]
[EndTime "11:16:01 PST"]
[Termination "louis198 won by resignation"]

1. d4 {[%clk 0:03:00.9]} 1... Nf6 {[%clk 0:02:58.9]} 2. c4 {[%clk 0:03:00.8]}
2... e6 {[%clk 0:02:59.3]} 3. Nc3 {[%clk 0:03:00.8]} 3... Bb4 {[%clk 0:02:59.8]}
4. Qb3 {[%clk 0:03:01.3]} 4... c5 {[%clk 0:02:58.7]} 5. e3 {[%clk 0:03:01.5]}
5... O-O {[%clk 0:02:57.6]} 6. Bd3 {[%clk 0:03:00.9]} 6... Nc6 {[%clk
0:02:54.1]} 7. Ne2 {[%clk 0:03:00.7]} 7... d5 {[%clk 0:02:50.1]} 8. cxd5 {[%clk
0:02:59.9]} 8... Nxd5 {[%clk 0:02:51]} 9. O-O {[%clk 0:02:57.3]} 9... cxd4
{[%clk 0:02:44.9]} 10. exd4 {[%clk 0:02:56.1]} 10... Bd6 {[%clk 0:02:41.6]} 11.
Nxd5 {[%clk 0:02:52.5]} 11... exd5 {[%clk 0:02:42.5]} 12. g3 {[%clk 0:02:48.1]}
12... Be6 {[%clk 0:02:40.1]} 13. a3 {[%clk 0:02:39.7]} 13... Na5 {[%clk
0:02:39.4]} 14. Qd1 {[%clk 0:02:34.1]} 14... Rc8 {[%clk 0:02:34.7]} 15. Bf4
{[%clk 0:02:33.3]} 15... Nc4 {[%clk 0:02:28]} 16. Bxd6 {[%clk 0:02:31.6]} 16...
Qxd6 {[%clk 0:02:28.9]} 17. Nf4 {[%clk 0:02:30.1]} 17... Nxb2 {[%clk 0:02:26.9]}
18. Bxh7+ {[%clk 0:02:26.6]} 18... Kxh7 {[%clk 0:02:24.7]} 19. Qb1+ {[%clk
0:02:27.1]} 19... Kg8 {[%clk 0:02:17.6]} 20. Qxb2 {[%clk 0:02:27.4]} 20... b6
{[%clk 0:02:05.8]} 21. h4 {[%clk 0:02:26.5]} 21... Rc4 {[%clk 0:02:04.6]} 22.
Rae1 {[%clk 0:02:24.6]} 22... Rfc8 {[%clk 0:01:49.5]} 23. Nxe6 {[%clk
0:02:23.3]} 23... fxe6 {[%clk 0:01:50.4]} 24. Re2 {[%clk 0:02:23.6]} 24... Rc3
{[%clk 0:01:45.8]} 25. Rfe1 {[%clk 0:02:22.6]} 25... Qxa3 {[%clk 0:01:41.5]} 26.
Qb1 {[%clk 0:02:12.4]} 26... Rc1 {[%clk 0:01:31.9]} 27. Qg6 {[%clk 0:02:11.6]}
27... Qa1 {[%clk 0:01:14.5]} 28. Qxe6+ {[%clk 0:02:09.9]} 28... Kh8 {[%clk
0:01:14]} 29. Qxc8+ {[%clk 0:02:06.6]} 1-0

[Event "*** Titled Tuesday Blitz"]
[Site "Chess.com"]
[Date "2021.02.02"]
[Round "7"]
[White "Nachsueb"]
[Black "Mimsychess"]
[Result "0-1"]
[WhiteElo "2178"]
[BlackElo "2362"]
[TimeControl "180+1"]
[EndTime "11:16:25 PST"]
[Termination "Mimsychess won by resignation"]

1. d4 {[%clk 0:03:00]} 1... Nf6 {[%clk 0:02:53.3]} 2. c4 {[%clk 0:02:59.5]} 2...
e6 {[%clk 0:02:49.7]} 3. Nc3 {[%clk 0:02:59.7]} 3... Bb4 {[%clk 0:02:49.5]} 4.
e3 {[%clk 0:03:00]} 4... O-O {[%clk 0:02:49]} 5. Ne2 {[%clk 0:02:59.7]} 5... c6
{[%clk 0:02:49.2]} 6. a3 {[%clk 0:02:59.9]} 6... Ba5 {[%clk 0:02:49.7]} 7. c5
{[%clk 0:02:56.7]} 7... Bc7 {[%clk 0:02:43.7]} 8. Ng3 {[%clk 0:02:55.9]} 8... b6
{[%clk 0:02:32.3]} 9. b4 {[%clk 0:02:54.6]} 9... e5 {[%clk 0:02:32.8]} 10. cxb6
{[%clk 0:02:47.7]} 10... axb6 {[%clk 0:02:32.4]} 11. d5 {[%clk 0:02:48.1]} 11...
cxd5 {[%clk 0:02:20.8]} 12. Nxd5 {[%clk 0:02:49]} 12... Nxd5 {[%clk 0:02:15.6]}
13. Qxd5 {[%clk 0:02:48.2]} 13... Nc6 {[%clk 0:02:03.2]} 14. Bd3 {[%clk
0:02:44.7]} 14... Nxb4 {[%clk 0:01:55.7]} 15. Qxa8 {[%clk 0:02:11.3]} 15...
Nxd3+ {[%clk 0:01:51.8]} 16. Ke2 {[%clk 0:02:10.3]} 16... d5 {[%clk 0:01:49.6]}
17. Qc6 {[%clk 0:02:00.6]} 17... Ba6 {[%clk 0:01:47]} 18. Kd2 {[%clk 0:01:58.2]}
18... Nxf2 {[%clk 0:01:38.8]} 19. Bb2 {[%clk 0:01:49.6]} 19... Nxh1 {[%clk
0:01:34]} 20. Rxh1 {[%clk 0:01:50.5]} 20... d4 {[%clk 0:01:31.3]} 21. exd4
{[%clk 0:01:49.6]} 21... exd4 {[%clk 0:01:32.2]} 22. Nf5 {[%clk 0:01:37.4]}
22... Qg5+ {[%clk 0:01:25]} 23. Kd1 {[%clk 0:01:26.4]} 23... Qxf5 {[%clk
0:01:19.8]} 24. Qxc7 {[%clk 0:01:26.4]} 24... Qd3+ {[%clk 0:01:19.8]} 0-1

[Event "*** Titled Tuesday Blitz"]
[Site "Chess.com"]
[Date "2021.02.02"]
[Round "7"]
[White "Chernobay_Artem"]
[Black "ChristopherYoo"]
[Result "1-0"]
[WhiteElo "2607"]
[BlackElo "2836"]
[TimeControl "180+1"]
[EndTime "11:16:27 PST"]
[Termination "Chernobay_Artem won by resignation"]

1. d4 {[%clk 0:03:00.9]} 1... Nf6 {[%clk 0:02:59.1]} 2. c4 {[%clk 0:03:01.3]}
2... e6 {[%clk 0:02:59.1]} 3. Nf3 {[%clk 0:03:01.3]} 3... d5 {[%clk 0:02:59.4]}
4. g3 {[%clk 0:03:00.9]} 4... Ke7 {[%clk 0:02:59.1]} 5. Bg2 {[%clk 0:02:55.7]}
5... Ke8 {[%clk 0:02:59]} 6. O-O {[%clk 0:02:54.3]} 6... Be7 {[%clk 0:02:59.6]}
7. Nc3 {[%clk 0:02:42.3]} 7... Nbd7 {[%clk 0:02:58.6]} 8. Qd3 {[%clk 0:02:39.9]}
8... Bb4 {[%clk 0:02:34.9]} 9. cxd5 {[%clk 0:02:32.5]} 9... exd5 {[%clk
0:02:32.9]} 10. Bg5 {[%clk 0:02:33]} 10... Be7 {[%clk 0:02:16.6]} 11. e4 {[%clk
0:02:28.1]} 11... dxe4 {[%clk 0:02:12.6]} 12. Nxe4 {[%clk 0:02:27.5]} 12... h6
{[%clk 0:02:12.2]} 13. Nxf6+ {[%clk 0:02:22.4]} 13... Nxf6 {[%clk 0:02:11.1]}
14. Bxf6 {[%clk 0:02:22.3]} 14... Bxf6 {[%clk 0:02:10.6]} 15. Rfe1+ {[%clk
0:02:18.5]} 15... Kf8 {[%clk 0:02:10.5]} 16. Ne5 {[%clk 0:02:12.8]} 16... Bxe5
{[%clk 0:02:05.4]} 17. Rxe5 {[%clk 0:02:11.3]} 17... g6 {[%clk 0:02:05]} 18.
Rae1 {[%clk 0:02:01.8]} 18... Kg7 {[%clk 0:02:03.7]} 19. Re7 {[%clk 0:02:01.6]}
19... Qd6 {[%clk 0:01:32.6]} 20. Qc3 {[%clk 0:01:34.2]} 20... Rd8 {[%clk
0:01:03.5]} 21. d5+ {[%clk 0:01:28.9]} 21... Kg8 {[%clk 0:01:02]} 22. Re8+
{[%clk 0:01:25.5]} 1-0

[Event "*** Titled Tuesday Blitz"]
[Site "Chess.com"]
[Date "2021.02.02"]
[Round "7"]
[White "Piotrek1979"]
[Black "CoachHakia"]
[Result "1-0"]
[WhiteElo "2335"]
[BlackElo "2156"]
[TimeControl "180+1"]
[EndTime "11:16:27 PST"]
[Termination "Piotrek1979 won by resignation"]

1. e4 {[%clk 0:03:00.9]} 1... d5 {[%clk 0:02:59.9]} 2. exd5 {[%clk 0:02:59.2]}
2... Qxd5 {[%clk 0:03:00.8]} 3. Nc3 {[%clk 0:02:58.1]} 3... Qd6 {[%clk
0:03:00.3]} 4. d4 {[%clk 0:02:57.6]} 4... Nf6 {[%clk 0:03:00.1]} 5. Nf3 {[%clk
0:02:56.8]} 5... g6 {[%clk 0:02:57.7]} 6. g3 {[%clk 0:02:55.9]} 6... Bg7 {[%clk
0:02:53.6]} 7. Bg2 {[%clk 0:02:53.3]} 7... a6 {[%clk 0:02:52.8]} 8. O-O {[%clk
0:02:51.6]} 8... b5 {[%clk 0:02:50.6]} 9. Bf4 {[%clk 0:02:34.2]} 9... Qb6 {[%clk
0:02:46]} 10. a4 {[%clk 0:02:22.1]} 10... b4 {[%clk 0:02:36.8]} 11. a5 {[%clk
0:02:20.4]} 11... Qa7 {[%clk 0:02:30]} 12. Na4 {[%clk 0:02:14.3]} 12... Nbd7
{[%clk 0:02:24]} 13. Ne5 {[%clk 0:02:09.3]} 13... Bb7 {[%clk 0:02:22.3]} 14. Nc6
{[%clk 0:02:08.7]} 14... Bxc6 {[%clk 0:02:13.6]} 15. Bxc6 {[%clk 0:02:09.6]}
15... Rd8 {[%clk 0:02:00.4]} 16. Re1 {[%clk 0:02:08.1]} 16... e6 {[%clk
0:01:52.5]} 17. d5 {[%clk 0:02:07]} 17... O-O {[%clk 0:01:44.2]} 18. dxe6 {[%clk
0:02:02]} 18... fxe6 {[%clk 0:01:40.6]} 19. Qe2 {[%clk 0:01:42.8]} 19... e5
{[%clk 0:01:33.1]} 20. Be3 {[%clk 0:01:27.9]} 20... Qb8 {[%clk 0:01:29.8]} 21.
Qxa6 {[%clk 0:01:26.2]} 21... Ng4 {[%clk 0:01:21.7]} 22. Qc4+ {[%clk 0:01:24.8]}
1-0

[Event "*** Titled Tuesday Blitz"]
[Site "Chess.com"]
[Date "2021.02.02"]
[Round "7"]
[White "DanilNajdin"]
[Black "Matols"]
[Result "1-0"]
[WhiteElo "2461"]
[BlackElo "2275"]
[TimeControl "180+1"]
[EndTime "11:16:39 PST"]
[Termination "DanilNajdin won by resignation"]

1. e4 {[%clk 0:03:00.4]} 1... e6 {[%clk 0:02:59.9]} 2. d4 {[%clk 0:02:59.8]}
2... d5 {[%clk 0:02:59.9]} 3. Nd2 {[%clk 0:02:58.8]} 3... c5 {[%clk 0:02:59.1]}
4. exd5 {[%clk 0:02:58.5]} 4... Qxd5 {[%clk 0:02:59.1]} 5. Ngf3 {[%clk
0:02:58.1]} 5... cxd4 {[%clk 0:02:59.4]} 6. Bc4 {[%clk 0:02:58.7]} 6... Qd6
{[%clk 0:02:59.3]} 7. O-O {[%clk 0:02:59.2]} 7... Nf6 {[%clk 0:02:58.6]} 8. Nb3
{[%clk 0:02:59.5]} 8... Nc6 {[%clk 0:02:58.9]} 9. Re1 {[%clk 0:02:59.2]} 9... a6
{[%clk 0:02:52.4]} 10. Nbxd4 {[%clk 0:02:58.6]} 10... Nxd4 {[%clk 0:02:51.7]}
11. Qxd4 {[%clk 0:02:59]} 11... Qxd4 {[%clk 0:02:47.6]} 12. Nxd4 {[%clk
0:02:59.9]} 12... Bc5 {[%clk 0:02:46]} 13. Nb3 {[%clk 0:02:53.7]} 13... Ba7
{[%clk 0:02:44.8]} 14. Be3 {[%clk 0:02:53.4]} 14... Bxe3 {[%clk 0:02:36.8]} 15.
Rxe3 {[%clk 0:02:54.3]} 15... b5 {[%clk 0:02:36.4]} 16. Be2 {[%clk 0:02:54.1]}
16... Bb7 {[%clk 0:02:35.3]} 17. a4 {[%clk 0:02:53]} 17... b4 {[%clk 0:02:32.7]}
18. Nc5 {[%clk 0:02:51.5]} 18... Bd5 {[%clk 0:02:16.4]} 19. Nxa6 {[%clk
0:02:48.7]} 19... Kd7 {[%clk 0:02:12.7]} 20. Nxb4 {[%clk 0:02:47.8]} 20... Rhb8
{[%clk 0:02:05]} 21. Bb5+ {[%clk 0:02:42.1]} 21... Kd6 {[%clk 0:02:04.1]} 22.
Rd1 {[%clk 0:02:32]} 22... Kc5 {[%clk 0:02:00.9]} 23. c3 {[%clk 0:02:25.4]}
23... Bb3 {[%clk 0:01:55.3]} 24. Rd4 {[%clk 0:02:21]} 24... Rxb5 {[%clk
0:01:45.5]} 25. Nd3+ {[%clk 0:02:17.8]} 25... Kb6 {[%clk 0:01:35.8]} 26. axb5
{[%clk 0:02:17.6]} 26... Nd5 {[%clk 0:01:32.1]} 27. Re1 {[%clk 0:02:11.7]} 27...
Kxb5 {[%clk 0:01:30.1]} 28. Nf4 {[%clk 0:01:50]} 28... Ra2 {[%clk 0:01:18.3]}
29. Nxd5 {[%clk 0:01:48.3]} 29... Bxd5 {[%clk 0:01:17.5]} 30. Rb4+ {[%clk
0:01:47.1]} 30... Kc5 {[%clk 0:01:17]} 31. h4 {[%clk 0:01:47.4]} 31... f6 {[%clk
0:01:08.3]} 32. h5 {[%clk 0:01:46.4]} 32... g6 {[%clk 0:01:07.7]} 33. h6 {[%clk
0:01:45.8]} 1-0

[Event "*** Titled Tuesday Blitz"]
[Site "Chess.com"]
[Date "2021.02.02"]
[Round "7"]
[White "Gabrielian_Artur"]
[Black "TokChess"]
[Result "1-0"]
[WhiteElo "2789"]
[BlackElo "2490"]
[TimeControl "180+1"]
[EndTime "11:16:55 PST"]
[Termination "Gabrielian_Artur won by resignation"]

1. c4 {[%clk 0:03:00.9]} 1... Nf6 {[%clk 0:02:58.4]} 2. Nc3 {[%clk 0:03:00.1]}
2... c6 {[%clk 0:02:57.4]} 3. Nf3 {[%clk 0:02:58.7]} 3... d5 {[%clk 0:02:57.4]}
4. e3 {[%clk 0:02:59.1]} 4... Bg4 {[%clk 0:02:54.6]} 5. h3 {[%clk 0:02:55.2]}
5... Bxf3 {[%clk 0:02:54.3]} 6. Qxf3 {[%clk 0:02:55]} 6... e6 {[%clk 0:02:55.2]}
7. d4 {[%clk 0:02:52.3]} 7... Bd6 {[%clk 0:02:55.1]} 8. Bd3 {[%clk 0:02:50.8]}
8... O-O {[%clk 0:02:54.7]} 9. O-O {[%clk 0:02:49.1]} 9... Nbd7 {[%clk
0:02:54.9]} 10. e4 {[%clk 0:02:43.5]} 10... e5 {[%clk 0:02:55.3]} 11. exd5
{[%clk 0:02:25.2]} 11... exd4 {[%clk 0:02:46.2]} 12. Ne4 {[%clk 0:02:25.1]}
12... Ne5 {[%clk 0:02:40.4]} 13. Nxf6+ {[%clk 0:02:23.3]} 13... Qxf6 {[%clk
0:02:41.3]} 14. Qxf6 {[%clk 0:02:19.8]} 14... gxf6 {[%clk 0:02:42.2]} 15. Rd1
{[%clk 0:02:19.7]} 15... cxd5 {[%clk 0:02:36.7]} 16. cxd5 {[%clk 0:02:19.4]}
16... Rfd8 {[%clk 0:02:30.4]} 17. Be4 {[%clk 0:02:13.1]} 17... Bc5 {[%clk
0:02:30.7]} 18. Bh6 {[%clk 0:02:07.5]} 18... Bb6 {[%clk 0:02:25.8]} 19. a4
{[%clk 0:02:00.2]} 19... a5 {[%clk 0:02:24.8]} 20. Ra3 {[%clk 0:01:59.9]} 20...
Bc5 {[%clk 0:02:23.4]} 21. Rg3+ {[%clk 0:01:59.2]} 21... Ng6 {[%clk 0:02:21.9]}
22. h4 {[%clk 0:01:56.3]} 22... f5 {[%clk 0:02:21.2]} 23. Bxf5 {[%clk
0:01:49.6]} 23... Rxd5 {[%clk 0:02:21.3]} 24. Be4 {[%clk 0:01:49.6]} 24... Re5
{[%clk 0:02:19.1]} 25. Bf3 {[%clk 0:01:49.4]} 25... Rae8 {[%clk 0:02:04.3]} 26.
Rf1 {[%clk 0:01:18.3]} 26... Re1 {[%clk 0:01:44.7]} 27. h5 {[%clk 0:01:08.8]}
27... Rxf1+ {[%clk 0:01:37.9]} 28. Kxf1 {[%clk 0:01:08.7]} 28... Bb4 {[%clk
0:01:38.8]} 29. Be2 {[%clk 0:01:01.1]} 29... d3 {[%clk 0:01:28.2]} 30. Rxd3
{[%clk 0:01:00.6]} 30... Ne5 {[%clk 0:01:25.4]} 31. Rg3+ {[%clk 0:00:59.9]} 1-0

[Event "*** Titled Tuesday Blitz"]
[Site "Chess.com"]
[Date "2021.02.02"]
[Round "7"]
[White "Murad_Ibrahimli"]
[Black "juancruzarias"]
[Result "0-1"]
[WhiteElo "2823"]
[BlackElo "2601"]
[TimeControl "180+1"]
[EndTime "11:16:56 PST"]
[Termination "juancruzarias won by resignation"]

1. Nf3 {[%clk 0:03:00.9]} 1... e6 {[%clk 0:03:00.2]} 2. d4 {[%clk 0:03:01]} 2...
f5 {[%clk 0:03:00.8]} 3. g3 {[%clk 0:03:00.4]} 3... Nf6 {[%clk 0:03:01.5]} 4.
Bg2 {[%clk 0:03:01]} 4... d5 {[%clk 0:03:02.1]} 5. O-O {[%clk 0:03:01.7]} 5...
Bd6 {[%clk 0:03:02.7]} 6. c4 {[%clk 0:03:01.8]} 6... c6 {[%clk 0:03:02.9]} 7.
Bf4 {[%clk 0:03:02.2]} 7... Bxf4 {[%clk 0:03:02.6]} 8. gxf4 {[%clk 0:03:02.3]}
8... O-O {[%clk 0:03:03.5]} 9. e3 {[%clk 0:03:00]} 9... Nbd7 {[%clk 0:03:04]}
10. Nbd2 {[%clk 0:02:59.2]} 10... Qe7 {[%clk 0:03:04.6]} 11. b3 {[%clk
0:02:48.4]} 11... Ne4 {[%clk 0:03:05.2]} 12. Nxe4 {[%clk 0:02:46.7]} 12... fxe4
{[%clk 0:03:06.1]} 13. Ne5 {[%clk 0:02:47]} 13... Nxe5 {[%clk 0:03:06.8]} 14.
fxe5 {[%clk 0:02:47.1]} 14... Bd7 {[%clk 0:03:07.4]} 15. Qg4 {[%clk 0:02:39.8]}
15... Be8 {[%clk 0:03:05.7]} 16. f3 {[%clk 0:01:57.3]} 16... exf3 {[%clk
0:03:06.6]} 17. Rxf3 {[%clk 0:01:50.3]} 17... Rxf3 {[%clk 0:03:06.2]} 18. Qxf3
{[%clk 0:01:48]} 18... Bg6 {[%clk 0:03:06.8]} 19. Rf1 {[%clk 0:01:46.8]} 19...
Be4 {[%clk 0:02:55.9]} 20. Qf4 {[%clk 0:01:39.6]} 20... Bxg2 {[%clk 0:02:55.2]}
21. Kxg2 {[%clk 0:01:40.5]} 21... Rf8 {[%clk 0:02:53.5]} 22. Qxf8+ {[%clk
0:01:28.2]} 22... Qxf8 {[%clk 0:02:54.4]} 23. Rxf8+ {[%clk 0:01:28.4]} 23...
Kxf8 {[%clk 0:02:55.3]} 24. h4 {[%clk 0:01:28.1]} 24... Kf7 {[%clk 0:02:54.9]}
25. Kg3 {[%clk 0:01:27.8]} 25... dxc4 {[%clk 0:02:34.3]} 26. bxc4 {[%clk
0:01:24.8]} 26... b5 {[%clk 0:02:34.1]} 27. cxb5 {[%clk 0:01:14.5]} 27... cxb5
{[%clk 0:02:35]} 28. e4 {[%clk 0:01:15.4]} 28... a5 {[%clk 0:02:34.1]} 29. Kf3
{[%clk 0:01:16]} 29... g6 {[%clk 0:02:23.4]} 30. d5 {[%clk 0:01:10.1]} 30... h6
{[%clk 0:02:14.9]} 31. d6 {[%clk 0:00:46.4]} 31... Ke8 {[%clk 0:02:14.1]} 32.
Ke3 {[%clk 0:00:45.6]} 32... g5 {[%clk 0:02:11.4]} 33. hxg5 {[%clk 0:00:45.2]}
33... hxg5 {[%clk 0:02:12.2]} 34. Kd4 {[%clk 0:00:29.4]} 34... Kd7 {[%clk
0:02:11.7]} 35. Kc5 {[%clk 0:00:29.5]} 35... g4 {[%clk 0:02:11.8]} 0-1

[Event "*** Titled Tuesday Blitz"]
[Site "Chess.com"]
[Date "2021.02.02"]
[Round "7"]
[White "yobdc"]
[Black "kidagent"]
[Result "1-0"]
[WhiteElo "2500"]
[BlackElo "2271"]
[TimeControl "180+1"]
[EndTime "11:17:06 PST"]
[Termination "yobdc won by resignation"]

1. e4 {[%clk 0:03:00.9]} 1... c5 {[%clk 0:02:59.8]} 2. Nf3 {[%clk 0:02:58.8]}
2... d6 {[%clk 0:03:00]} 3. c3 {[%clk 0:02:57.3]} 3... Nf6 {[%clk 0:02:58.1]} 4.
h3 {[%clk 0:02:57.4]} 4... Nc6 {[%clk 0:02:56.8]} 5. Bd3 {[%clk 0:02:56.7]} 5...
e5 {[%clk 0:02:52.6]} 6. Bc2 {[%clk 0:02:56.3]} 6... Be7 {[%clk 0:02:52.4]} 7.
d4 {[%clk 0:02:52.8]} 7... Qc7 {[%clk 0:02:50.6]} 8. O-O {[%clk 0:02:47.4]} 8...
O-O {[%clk 0:02:49.8]} 9. Re1 {[%clk 0:02:34.6]} 9... Bd7 {[%clk 0:02:44.2]} 10.
d5 {[%clk 0:02:31.3]} 10... Nd8 {[%clk 0:02:43.3]} 11. a4 {[%clk 0:02:29.5]}
11... Ne8 {[%clk 0:02:40.1]} 12. Nbd2 {[%clk 0:02:28.5]} 12... g6 {[%clk
0:02:36.8]} 13. Nc4 {[%clk 0:02:24]} 13... Ng7 {[%clk 0:02:35.5]} 14. Nfxe5
{[%clk 0:02:15.4]} 14... dxe5 {[%clk 0:02:20.9]} 15. d6 {[%clk 0:02:15.4]} 15...
Bxd6 {[%clk 0:02:21.4]} 16. Qxd6 {[%clk 0:02:15.2]} 16... Qxd6 {[%clk
0:02:21.5]} 17. Nxd6 {[%clk 0:02:16.1]} 17... Bc6 {[%clk 0:02:17.9]} 18. Be3
{[%clk 0:02:12.9]} 18... b6 {[%clk 0:02:17.1]} 19. a5 {[%clk 0:02:12.1]} 19...
Nde6 {[%clk 0:02:11.3]} 20. axb6 {[%clk 0:02:06.4]} 20... axb6 {[%clk
0:02:11.4]} 21. Nc4 {[%clk 0:02:06.5]} 21... f6 {[%clk 0:01:53.8]} 22. Nxb6
{[%clk 0:02:02]} 22... Rab8 {[%clk 0:01:52.3]} 23. Nc4 {[%clk 0:01:50.6]} 23...
Bb5 {[%clk 0:01:51.4]} 24. Bd3 {[%clk 0:01:47]} 24... Rfe8 {[%clk 0:01:44.7]}
25. b3 {[%clk 0:01:35.7]} 25... Red8 {[%clk 0:01:43.4]} 26. Bf1 {[%clk
0:01:35.1]} 26... Ne8 {[%clk 0:01:34]} 27. Ra7 {[%clk 0:01:28.5]} 27... Rd7
{[%clk 0:01:30.8]} 28. Rea1 {[%clk 0:01:27]} 28... Rbd8 {[%clk 0:01:28]} 29.
Rxd7 {[%clk 0:01:12.2]} 29... Rxd7 {[%clk 0:01:27.5]} 30. Nb6 {[%clk 0:01:00.5]}
1-0

[Event "*** Titled Tuesday Blitz"]
[Site "Chess.com"]
[Date "2021.02.02"]
[Round "7"]
[White "beto-betun"]
[Black "northridgehawk"]
[Result "0-1"]
[WhiteElo "2187"]
[BlackElo "2316"]
[TimeControl "180+1"]
[EndTime "11:17:13 PST"]
[Termination "northridgehawk won by resignation"]

1. d4 {[%clk 0:03:00.9]} 1... f5 {[%clk 0:02:58.9]} 2. Nf3 {[%clk 0:03:01.2]}
2... Nf6 {[%clk 0:02:59.2]} 3. g3 {[%clk 0:03:01.2]} 3... g6 {[%clk 0:02:59.1]}
4. Bg2 {[%clk 0:03:01.6]} 4... Bg7 {[%clk 0:03:00]} 5. O-O {[%clk 0:03:01.9]}
5... O-O {[%clk 0:03:00.9]} 6. c4 {[%clk 0:03:02.3]} 6... c6 {[%clk 0:03:01.3]}
7. Nc3 {[%clk 0:02:53.5]} 7... d6 {[%clk 0:03:01.4]} 8. Nd2 {[%clk 0:02:51.5]}
8... e5 {[%clk 0:03:00.6]} 9. d5 {[%clk 0:02:38.1]} 9... Na6 {[%clk 0:02:54.8]}
10. dxc6 {[%clk 0:02:29.8]} 10... bxc6 {[%clk 0:02:54.8]} 11. Bxc6 {[%clk
0:02:30.3]} 11... Rb8 {[%clk 0:02:53.9]} 12. Bg2 {[%clk 0:02:22.3]} 12... Nc5
{[%clk 0:02:53.4]} 13. b3 {[%clk 0:02:15.4]} 13... e4 {[%clk 0:02:51]} 14. Ba3
{[%clk 0:02:01.1]} 14... Ng4 {[%clk 0:02:41.8]} 15. Rc1 {[%clk 0:01:57.6]} 15...
e3 {[%clk 0:02:38.2]} 16. fxe3 {[%clk 0:01:45.6]} 16... Nxe3 {[%clk 0:02:37.3]}
17. Qe1 {[%clk 0:01:41.2]} 17... Nxf1 {[%clk 0:02:32.8]} 18. Nxf1 {[%clk
0:01:37.1]} 18... Re8 {[%clk 0:02:28.8]} 19. Rd1 {[%clk 0:01:32.3]} 19... Qa5
{[%clk 0:02:25.5]} 20. Bb2 {[%clk 0:01:28.3]} 20... Be6 {[%clk 0:02:13.8]} 21.
Rxd6 {[%clk 0:01:20.3]} 21... Bxc4 {[%clk 0:02:11.4]} 22. Bd5+ {[%clk
0:01:10.1]} 22... Bxd5 {[%clk 0:02:08.9]} 23. Rxd5 {[%clk 0:01:08.6]} 23... Qb6
{[%clk 0:02:04.2]} 24. Kg2 {[%clk 0:01:05.3]} 24... Qc6 {[%clk 0:02:02.7]} 25.
Kg1 {[%clk 0:00:59.4]} 25... Rbd8 {[%clk 0:01:53.2]} 26. Rxd8 {[%clk 0:00:49.3]}
26... Rxd8 {[%clk 0:01:54.1]} 27. Ne3 {[%clk 0:00:49.5]} 27... Bd4 {[%clk
0:01:49]} 28. Nd5 {[%clk 0:00:41.4]} 28... Rxd5 {[%clk 0:01:46.8]} 29. Bxd4
{[%clk 0:00:28.8]} 29... Rxd4 {[%clk 0:01:47.7]} 30. Qc3 {[%clk 0:00:26.2]}
30... Qd6 {[%clk 0:01:43.6]} 31. Nc4 {[%clk 0:00:22.7]} 31... Rd1+ {[%clk
0:01:43.1]} 32. Kf2 {[%clk 0:00:22.3]} 32... Qd4+ {[%clk 0:01:42.8]} 0-1

[Event "*** Titled Tuesday Blitz"]
[Site "Chess.com"]
[Date "2021.02.02"]
[Round "7"]
[White "PavelChernomordik"]
[Black "sergeikim"]
[Result "1-0"]
[WhiteElo "2393"]
[BlackElo "2500"]
[TimeControl "180+1"]
[EndTime "11:17:16 PST"]
[Termination "PavelChernomordik won by checkmate"]

1. e4 {[%clk 0:03:00.9]} 1... e5 {[%clk 0:02:59.1]} 2. Nf3 {[%clk 0:03:00.4]}
2... Nc6 {[%clk 0:02:58.9]} 3. Bb5 {[%clk 0:02:59]} 3... a6 {[%clk 0:02:58.7]}
4. Ba4 {[%clk 0:02:58.4]} 4... Nf6 {[%clk 0:02:58.7]} 5. Qe2 {[%clk 0:02:58.1]}
5... b5 {[%clk 0:02:58.6]} 6. Bb3 {[%clk 0:02:57.7]} 6... Bc5 {[%clk 0:02:58.9]}
7. a4 {[%clk 0:02:56.9]} 7... b4 {[%clk 0:02:57.8]} 8. Bxf7+ {[%clk 0:02:55.8]}
8... Kf8 {[%clk 0:02:56.8]} 9. Ba2 {[%clk 0:02:47.9]} 9... d6 {[%clk 0:02:48.5]}
10. h3 {[%clk 0:02:46.8]} 10... Qe7 {[%clk 0:02:44.9]} 11. d3 {[%clk 0:02:42.2]}
11... Be6 {[%clk 0:02:42.5]} 12. Bxe6 {[%clk 0:02:39.2]} 12... Qxe6 {[%clk
0:02:42.5]} 13. Nbd2 {[%clk 0:02:40]} 13... Kg8 {[%clk 0:02:27.8]} 14. Nb3
{[%clk 0:02:36.6]} 14... Ba7 {[%clk 0:02:24]} 15. Be3 {[%clk 0:02:36.1]} 15...
Bxe3 {[%clk 0:02:22.9]} 16. fxe3 {[%clk 0:02:27.9]} 16... Nh5 {[%clk 0:02:14.9]}
17. Qf2 {[%clk 0:02:27.1]} 17... Qg6 {[%clk 0:02:11.4]} 18. g4 {[%clk
0:02:25.8]} 18... Nf6 {[%clk 0:02:10.1]} 19. O-O-O {[%clk 0:02:21.3]} 19... Rf8
{[%clk 0:02:03.5]} 20. Qg3 {[%clk 0:02:19.6]} 20... Qe8 {[%clk 0:01:59.5]} 21.
Nh4 {[%clk 0:02:11.6]} 21... Ne7 {[%clk 0:01:58.1]} 22. a5 {[%clk 0:02:10.4]}
22... c5 {[%clk 0:01:48.6]} 23. Rhf1 {[%clk 0:02:07]} 23... Nd7 {[%clk
0:01:34.3]} 24. Nf5 {[%clk 0:01:57]} 24... Nxf5 {[%clk 0:01:27.2]} 25. exf5
{[%clk 0:01:53.6]} 25... h5 {[%clk 0:01:23.8]} 26. g5 {[%clk 0:01:51.8]} 26...
h4 {[%clk 0:01:23.9]} 27. Qg4 {[%clk 0:01:51.4]} 27... Qh5 {[%clk 0:01:20.7]}
28. Qc4+ {[%clk 0:01:48.6]} 28... Kh7 {[%clk 0:01:16.4]} 29. Qe6 {[%clk
0:01:35.4]} 29... Qe8 {[%clk 0:01:05]} 30. Qxd6 {[%clk 0:01:31]} 30... e4 {[%clk
0:00:57.3]} 31. g6+ {[%clk 0:01:28.1]} 31... Kh6 {[%clk 0:00:52.4]} 32. Qf4+
{[%clk 0:01:26.7]} 32... Kh5 {[%clk 0:00:52.1]} 33. Qg4+ {[%clk 0:01:25.8]}
33... Kh6 {[%clk 0:00:51.4]} 34. Qxh4# {[%clk 0:01:25.3]} 1-0